[Event "Gibraltar Masters 18th"]
[Site "Gibraltar"]
[Date "2020.01.26"]
[Round "6.38"]
[White "Trent, Lawrence"]
[Black "Sadhwani, Raunak"]
[Result "0-1"]
[ECO "D00"]
[WhiteElo "2383"]
[BlackElo "2522"]
[PlyCount "78"]
[EventDate "2020.01.21"]
[EventType "swiss"]
[EventRounds "10"]
[EventCountry "GGB"]
[SourceTitle "BritBase"]
[Source "John Saunders"]
[SourceDate "2021.06.05"]
[SourceVersion "1"]
[SourceVersionDate "2021.06.05"]
[SourceQuality "1"]
[TimeControl "40/100:0"]
[WhiteClock "0:01:22"]
[BlackClock "0:12:38"]

1. d4 {[%emt 0:00:00]} Nf6 {[%emt 0:00:00]} 2. Bg5 {[%emt 0:00:00]} d5 {
[%emt 0:00:00]} 3. Nd2 {[%emt 0:00:00]} c5 {[%emt 0:00:00]} 4. dxc5 {[%emt 0:
00:00]} Qa5 {[%emt 0:00:00]} 5. c3 {[%emt 0:00:00]} Qxc5 {[%emt 0:00:00]} 6.
Bxf6 {[%emt 0:00:00]} gxf6 {[%emt 0:00:00]} 7. Ngf3 {[%emt 0:00:00]} Nc6 {
[%emt 0:00:00]} 8. e4 {[%emt 0:00:00]} Be6 {[%emt 0:00:00]} 9. Qa4 {[%emt 0:00:
00]} O-O-O {[%emt 0:00:00]} 10. Bb5 {[%emt 0:00:00]} a6 {[%emt 0:00:00]} 11.
Bxc6 {[%emt 0:00:00]} Qxc6 {[%emt 0:00:00]} 12. Qxc6+ {[%emt 0:00:00]} bxc6 {
[%emt 0:00:00]} 13. O-O {[%emt 0:00:00]} Rg8 {[%emt 0:00:00]} 14. Rfe1 {
[%emt 0:00:00]} Bh3 {[%emt 0:00:00]} 15. g3 {[%emt 0:00:00]} e5 {[%emt 0:00:00]
} 16. c4 {[%emt 0:00:00]} dxe4 {[%emt 0:00:00]} 17. Nxe4 {[%emt 0:00:00]} Be7 {
[%emt 0:00:00]} 18. c5 {[%emt 0:00:00]} f5 {[%emt 0:00:00]} 19. Nd6+ {[%emt 0:
00:00]} Bxd6 {[%emt 0:00:00]} 20. cxd6 {[%emt 0:00:00]} f6 {[%emt 0:00:00]} 21.
Nd2 {[%emt 0:00:00]} Rxd6 {[%emt 0:00:00]} 22. Nc4 {[%emt 0:00:00]} Rd4 {
[%emt 0:00:00]} 23. Rac1 {[%emt 0:00:00]} Kc7 {[%emt 0:00:00]} 24. f4 {[%emt 0:
00:00]} exf4 {[%emt 0:00:00]} 25. Na5 {[%emt 0:00:00]} Kb6 {[%emt 0:00:00]} 26.
Nc4+ {[%emt 0:00:00]} Kc5 {[%emt 0:00:00]} 27. Na5+ {[%emt 0:00:00]} Kb6 {
[%emt 0:00:00]} 28. Nc4+ {[%emt 0:00:00]} Kb5 {[%emt 0:00:00]} 29. Na3+ {
[%emt 0:00:00]} Ka5 {[%emt 0:00:00]} 30. Nc4+ {[%emt 0:00:00]} Kb4 {[%emt 0:00:
00]} 31. Na3 {[%emt 0:00:00]} Re4 {[%emt 0:00:00]} 32. Red1 {[%emt 0:00:00]}
fxg3 {[%emt 0:00:00]} 33. Rd7 {[%emt 0:00:17]} gxh2+ {[%emt 0:00:00]} 34. Kxh2
{[%emt 0:00:00]} Bf1 {[%emt 0:00:00]} 35. Rb7+ {[%emt 0:00:50]} Ka4 {[%emt 0:
00:00]} 36. Rxh7 {[%emt 0:00:00]} Re2+ {[%emt 0:00:00]} 37. Kh1 {[%emt 0:00:00]
} Bg2+ {[%emt 0:00:00]} 38. Kg1 {[%emt 0:00:00]} Be4+ {[%emt 0:00:00]} 39. Kf1
{[%emt 0:00:00]} Rxb2 {[%emt 0:00:00]} 0-1

[Event "Gibraltar Masters 18th"]
[Site "Gibraltar"]
[Date "2020.01.26"]
[Round "6.39"]
[White "Merario Alarcon, Andres"]
[Black "Gordon, Stephen J"]
[Result "0-1"]
[ECO "E35"]
[WhiteElo "2412"]
[BlackElo "2504"]
[PlyCount "94"]
[EventDate "2020.01.21"]
[EventType "swiss"]
[EventRounds "10"]
[EventCountry "GGB"]
[SourceTitle "BritBase"]
[Source "John Saunders"]
[SourceDate "2021.06.05"]
[SourceVersion "1"]
[SourceVersionDate "2021.06.05"]
[SourceQuality "1"]
[TimeControl "40/100:0"]
[WhiteClock "0:01:40"]
[BlackClock "0:41:03"]

1. d4 {[%emt 0:00:00]} Nf6 {[%emt 0:00:00]} 2. c4 {[%emt 0:00:00]} e6 {[%emt 0:
00:00]} 3. Nc3 {[%emt 0:00:00]} Bb4 {[%emt 0:00:00]} 4. Qc2 {[%emt 0:00:00]} d5
{[%emt 0:00:00]} 5. cxd5 {[%emt 0:00:00]} exd5 {[%emt 0:00:00]} 6. Bg5 {
[%emt 0:00:00]} h6 {[%emt 0:00:00]} 7. Bh4 {[%emt 0:00:00]} O-O {[%emt 0:00:00]
} 8. e3 {[%emt 0:00:00]} c5 {[%emt 0:00:00]} 9. dxc5 {[%emt 0:00:00]} Be6 {
[%emt 0:00:00]} 10. Nf3 {[%emt 0:00:00]} Nbd7 {[%emt 0:00:00]} 11. c6 {[%emt 0:
00:00]} bxc6 {[%emt 0:00:00]} 12. Be2 {[%emt 0:00:00]} Rc8 {[%emt 0:00:00]} 13.
O-O {[%emt 0:00:00]} Nc5 {[%emt 0:00:00]} 14. Rac1 {[%emt 0:00:00]} Bxc3 {
[%emt 0:00:00]} 15. Qxc3 {[%emt 0:00:00]} Nce4 {[%emt 0:00:00]} 16. Qa3 {
[%emt 0:00:00]} c5 {[%emt 0:00:00]} 17. b4 {[%emt 0:00:00]} cxb4 {[%emt 0:00:
00]} 18. Qxb4 {[%emt 0:00:00]} Qb6 {[%emt 0:00:00]} 19. Qa3 {[%emt 0:00:00]}
Rxc1 {[%emt 0:00:00]} 20. Rxc1 {[%emt 0:00:00]} Rc8 {[%emt 0:00:00]} 21. Nd4 {
[%emt 0:00:00]} Rxc1+ {[%emt 0:00:00]} 22. Qxc1 {[%emt 0:00:00]} g5 {[%emt 0:
00:00]} 23. Bg3 {[%emt 0:00:00]} Nxg3 {[%emt 0:00:00]} 24. hxg3 {[%emt 0:00:00]
} Qa5 {[%emt 0:00:00]} 25. a3 {[%emt 0:00:00]} Ne4 {[%emt 0:00:00]} 26. Bd3 {
[%emt 0:00:00]} Qd2 {[%emt 0:00:00]} 27. Qxd2 {[%emt 0:00:00]} Nxd2 {[%emt 0:
00:00]} 28. f3 {[%emt 0:00:00]} Bd7 {[%emt 0:00:00]} 29. Kf2 {[%emt 0:00:00]}
Ba4 {[%emt 0:00:00]} 30. Ke2 {[%emt 0:00:00]} Nb3 {[%emt 0:00:00]} 31. Nxb3 {
[%emt 0:00:00]} Bxb3 {[%emt 0:00:00]} 32. Kd2 {[%emt 0:00:00]} Kf8 {[%emt 0:00:
00]} 33. Kc3 {[%emt 0:00:00]} Bd1 {[%emt 0:00:00]} 34. Kd4 {[%emt 0:00:00]} Bb3
{[%emt 0:00:00]} 35. Kc5 {[%emt 0:00:00]} Ke7 {[%emt 0:00:00]} 36. f4 {[%emt 0:
00:00]} g4 {[%emt 0:00:00]} 37. Ba6 {[%emt 0:00:00]} h5 {[%emt 0:00:00]} 38.
Bb7 {[%emt 0:00:00]} Ke6 {[%emt 0:00:00]} 39. Bc6 {[%emt 0:00:00]} Ba2 {
[%emt 0:00:00]} 40. a4 {[%emt 0:00:00]} Bb3 {[%emt 0:00:00]} 41. a5 {[%emt 0:
00:00]} Ba2 {[%emt 0:02:38]} 42. Bb7 {[%emt 0:02:05]} Bb3 {[%emt 0:00:01]} 43.
Bc8+ {[%emt 0:00:32]} Ke7 {[%emt 0:00:00]} 44. Kc6 {[%emt 0:00:00]} Bc4 {
[%emt 0:00:00]} 45. Kb7 {[%emt 0:00:00]} Kd8 {[%emt 0:00:00]} 46. Bf5 {[%emt 0:
00:00]} Bf1 {[%emt 0:00:00]} 47. Kxa7 {[%emt 0:00:00]} Kc7 {[%emt 0:00:00]} 0-1

[Event "Gibraltar Masters 18th"]
[Site "Gibraltar"]
[Date "2020.01.26"]
[Round "6.40"]
[White "Wemmers, Xander"]
[Black "Petrov, Martin"]
[Result "1-0"]
[ECO "E20"]
[WhiteElo "2380"]
[BlackElo "2504"]
[PlyCount "81"]
[EventDate "2020.01.21"]
[EventType "swiss"]
[EventRounds "10"]
[EventCountry "GGB"]
[SourceTitle "BritBase"]
[Source "John Saunders"]
[SourceDate "2021.06.05"]
[SourceVersion "1"]
[SourceVersionDate "2021.06.05"]
[SourceQuality "1"]
[TimeControl "40/100:0"]
[WhiteClock "0:00:59"]
[BlackClock "0:00:31"]

1. d4 {[%emt 0:00:00]} Nf6 {[%emt 0:00:00]} 2. c4 {[%emt 0:00:00]} e6 {[%emt 0:
00:00]} 3. Nc3 {[%emt 0:00:00]} Bb4 {[%emt 0:00:00]} 4. f3 {[%emt 0:00:00]} c5
{[%emt 0:00:00]} 5. d5 {[%emt 0:00:00]} b5 {[%emt 0:00:00]} 6. e4 {[%emt 0:00:
00]} bxc4 {[%emt 0:00:00]} 7. Bxc4 {[%emt 0:00:00]} O-O {[%emt 0:00:00]} 8.
Nge2 {[%emt 0:00:00]} Nxd5 {[%emt 0:00:00]} 9. Bxd5 {[%emt 0:00:00]} exd5 {
[%emt 0:00:00]} 10. Qxd5 {[%emt 0:00:00]} Ba6 {[%emt 0:00:00]} 11. O-O {
[%emt 0:00:00]} Bxc3 {[%emt 0:00:00]} 12. Nxc3 {[%emt 0:00:00]} Bxf1 {[%emt 0:
00:00]} 13. Qxa8 {[%emt 0:00:00]} Qb6 {[%emt 0:00:00]} 14. Nd5 {[%emt 0:00:00]}
Qb5 {[%emt 0:00:00]} 15. Ne7+ {[%emt 0:00:00]} Kh8 {[%emt 0:00:00]} 16. Qd5 {
[%emt 0:00:00]} Nc6 {[%emt 0:00:00]} 17. Nf5 {[%emt 0:00:00]} Bc4 {[%emt 0:00:
00]} 18. Qd6 {[%emt 0:00:00]} Rg8 {[%emt 0:00:00]} 19. b3 {[%emt 0:00:00]} Be6
{[%emt 0:00:00]} 20. Ng3 {[%emt 0:00:00]} c4 {[%emt 0:00:00]} 21. bxc4 {
[%emt 0:00:00]} Qxc4 {[%emt 0:00:00]} 22. Bf4 {[%emt 0:00:00]} a5 {[%emt 0:00:
00]} 23. h4 {[%emt 0:00:00]} a4 {[%emt 0:00:00]} 24. a3 {[%emt 0:00:00]} h6 {
[%emt 0:00:00]} 25. Rd1 {[%emt 0:00:00]} Rb8 {[%emt 0:00:00]} 26. Qd2 {[%emt 0:
00:00]} Rb5 {[%emt 0:00:00]} 27. Kh2 {[%emt 0:00:00]} Qc5 {[%emt 0:00:00]} 28.
Bd6 {[%emt 0:00:00]} Qb6 {[%emt 0:00:00]} 29. Rc1 {[%emt 0:00:00]} Rb2 {
[%emt 0:00:00]} 30. Rc2 {[%emt 0:00:00]} Rb1 {[%emt 0:00:00]} 31. Rc1 {[%emt 0:
00:00]} Rb2 {[%emt 0:00:00]} 32. Rc2 {[%emt 0:00:00]} Rb1 {[%emt 0:00:00]} 33.
Rc1 {[%emt 0:00:00]} Qb2 {[%emt 0:00:00]} 34. Qxb2 {[%emt 0:00:00]} Rxb2 {
[%emt 0:00:00]} 35. Nh5 {[%emt 0:00:00]} Rd2 {[%emt 0:00:00]} 36. Bf8 {[%emt 0:
00:45]} g6 {[%emt 0:00:26]} 37. Bxh6 {[%emt 0:00:09]} Ra2 {[%emt 0:00:09]} 38.
Nf6 {[%emt 0:00:00]} Rxa3 {[%emt 0:00:15]} 39. h5 {[%emt 0:00:00]} gxh5 {
[%emt 0:00:00]} 40. Rc5 {[%emt 0:00:00]} Ne7 {[%emt 0:00:19]} 41. Bf8 {[%emt 0:
01:27]} 1-0

[Event "Gibraltar Masters 18th"]
[Site "Gibraltar"]
[Date "2020.01.26"]
[Round "6.41"]
[White "Zhukova, Natalia"]
[Black "Barbosa, Evandro Amorim"]
[Result "1/2-1/2"]
[ECO "A29"]
[WhiteElo "2338"]
[BlackElo "2501"]
[PlyCount "45"]
[EventDate "2020.01.21"]
[EventType "swiss"]
[EventRounds "10"]
[EventCountry "GGB"]
[SourceTitle "BritBase"]
[Source "John Saunders"]
[SourceDate "2021.06.05"]
[SourceVersion "1"]
[SourceVersionDate "2021.06.05"]
[SourceQuality "1"]
[TimeControl "40/100:0"]
[WhiteClock "0:38:39"]
[BlackClock "0:33:56"]

1. c4 {[%emt 0:00:00]} e5 {[%emt 0:00:00]} 2. Nc3 {[%emt 0:00:00]} Nf6 {
[%emt 0:00:00]} 3. Nf3 {[%emt 0:00:00]} Nc6 {[%emt 0:00:00]} 4. g3 {[%emt 0:00:
00]} d5 {[%emt 0:00:00]} 5. cxd5 {[%emt 0:00:00]} Nxd5 {[%emt 0:00:00]} 6. Bg2
{[%emt 0:00:00]} Nb6 {[%emt 0:00:00]} 7. O-O {[%emt 0:00:00]} Be7 {[%emt 0:00:
00]} 8. a3 {[%emt 0:00:00]} O-O {[%emt 0:00:00]} 9. b4 {[%emt 0:00:00]} Re8 {
[%emt 0:00:00]} 10. d3 {[%emt 0:00:00]} Bf8 {[%emt 0:00:00]} 11. Bg5 {[%emt 0:
00:00]} f6 {[%emt 0:00:00]} 12. Be3 {[%emt 0:00:00]} a5 {[%emt 0:00:00]} 13.
Bxb6 {[%emt 0:00:00]} cxb6 {[%emt 0:00:00]} 14. b5 {[%emt 0:00:00]} Nd4 {
[%emt 0:00:00]} 15. e3 {[%emt 0:14:19]} Nxf3+ {[%emt 0:00:00]} 16. Qxf3 {
[%emt 0:00:00]} Rb8 {[%emt 0:00:00]} 17. Rfd1 {[%emt 0:00:00]} Be6 {[%emt 0:00:
00]} 18. d4 {[%emt 0:00:00]} Qc8 {[%emt 0:00:00]} 19. Rdc1 {[%emt 0:00:00]} Bg4
{[%emt 0:00:00]} 20. Qd5+ {[%emt 0:00:00]} Be6 {[%emt 0:00:00]} 21. Qf3 {
[%emt 0:00:00]} Bg4 {[%emt 0:00:00]} 22. Qd5+ {[%emt 0:00:00]} Be6 {[%emt 0:00:
00]} 23. Qf3 1/2-1/2

[Event "Gibraltar Masters 18th"]
[Site "Gibraltar"]
[Date "2020.01.26"]
[Round "6.42"]
[White "Lujan, Carolina"]
[Black "Lei, Tingjie"]
[Result "1/2-1/2"]
[ECO "C54"]
[WhiteElo "2330"]
[BlackElo "2493"]
[PlyCount "77"]
[EventDate "2020.01.21"]
[EventType "swiss"]
[EventRounds "10"]
[EventCountry "GGB"]
[SourceTitle "BritBase"]
[Source "John Saunders"]
[SourceDate "2021.06.05"]
[SourceVersion "1"]
[SourceVersionDate "2021.06.05"]
[SourceQuality "1"]
[TimeControl "40/100:0"]
[WhiteClock "0:07:48"]
[BlackClock "0:25:00"]

1. e4 {[%emt 0:00:00]} e5 {[%emt 0:00:00]} 2. Nf3 {[%emt 0:00:00]} Nc6 {
[%emt 0:00:00]} 3. Bc4 {[%emt 0:00:00]} Bc5 {[%emt 0:00:00]} 4. d3 {[%emt 0:00:
00]} Nf6 {[%emt 0:00:00]} 5. O-O {[%emt 0:00:00]} d6 {[%emt 0:00:00]} 6. c3 {
[%emt 0:00:00]} a5 {[%emt 0:00:00]} 7. Bb3 {[%emt 0:00:00]} O-O {[%emt 0:00:00]
} 8. h3 {[%emt 0:00:00]} h6 {[%emt 0:00:00]} 9. Re1 {[%emt 0:00:00]} Re8 {
[%emt 0:00:00]} 10. Nbd2 {[%emt 0:00:00]} Be6 {[%emt 0:00:00]} 11. Ba4 {
[%emt 0:00:00]} Qb8 {[%emt 0:00:00]} 12. Nf1 {[%emt 0:00:00]} b5 {[%emt 0:00:
00]} 13. Bc2 {[%emt 0:00:00]} Qa7 {[%emt 0:00:00]} 14. Be3 {[%emt 0:00:00]}
Bxe3 {[%emt 0:00:00]} 15. Nxe3 {[%emt 0:00:00]} Ne7 {[%emt 0:00:00]} 16. d4 {
[%emt 0:00:00]} Ng6 {[%emt 0:00:00]} 17. Nf5 {[%emt 0:00:00]} Rad8 {[%emt 0:00:
00]} 18. Qc1 {[%emt 0:00:00]} c5 {[%emt 0:00:00]} 19. Nxd6 {[%emt 0:00:00]}
Rxd6 {[%emt 0:00:00]} 20. dxe5 {[%emt 0:00:00]} Nxe5 {[%emt 0:00:00]} 21. Nxe5
{[%emt 0:00:00]} Bc8 {[%emt 0:00:00]} 22. Nf3 {[%emt 0:00:00]} Rde6 {[%emt 0:
00:00]} 23. e5 {[%emt 0:00:00]} Nd7 {[%emt 0:00:00]} 24. Qf4 {[%emt 0:00:00]}
Qc7 {[%emt 0:00:00]} 25. a4 {[%emt 0:00:00]} Bb7 {[%emt 0:00:00]} 26. Bf5 {
[%emt 0:00:00]} Nxe5 {[%emt 0:00:00]} 27. Nxe5 {[%emt 0:00:00]} Rxe5 {[%emt 0:
00:00]} 28. Rxe5 {[%emt 0:00:00]} Qxe5 {[%emt 0:00:00]} 29. Qxe5 {[%emt 0:00:
00]} Rxe5 {[%emt 0:00:00]} 30. Bd3 {[%emt 0:00:00]} bxa4 {[%emt 0:00:00]} 31.
Rxa4 {[%emt 0:00:00]} Re1+ {[%emt 0:00:00]} 32. Kh2 {[%emt 0:00:00]} Rd1 {
[%emt 0:00:00]} 33. Be4 {[%emt 0:00:00]} Bxe4 {[%emt 0:00:00]} 34. Rxe4 {
[%emt 0:00:00]} Rd2 {[%emt 0:00:00]} 35. Re8+ {[%emt 0:00:00]} Kh7 {[%emt 0:00:
00]} 36. Ra8 {[%emt 0:00:00]} Rxf2 {[%emt 0:00:00]} 37. Rxa5 {[%emt 0:00:00]}
Rxb2 {[%emt 0:00:00]} 38. Rxc5 {[%emt 0:00:00]} Kg6 {[%emt 0:00:00]} 39. Kg3 {
[%emt 0:00:00]} 1/2-1/2

[Event "Gibraltar Masters 18th"]
[Site "Gibraltar"]
[Date "2020.01.26"]
[Round "6.43"]
[White "Tan, Zhongyi"]
[Black "Chigaeva, Anastasia"]
[Result "1-0"]
[ECO "D17"]
[WhiteElo "2493"]
[BlackElo "2156"]
[PlyCount "65"]
[EventDate "2020.01.21"]
[EventType "swiss"]
[EventRounds "10"]
[EventCountry "GGB"]
[SourceTitle "BritBase"]
[Source "John Saunders"]
[SourceDate "2021.06.05"]
[SourceVersion "1"]
[SourceVersionDate "2021.06.05"]
[SourceQuality "1"]
[TimeControl "40/100:0"]
[WhiteClock "0:32:18"]
[BlackClock "0:00:46"]

1. d4 {[%emt 0:00:00]} d5 {[%emt 0:00:00]} 2. c4 {[%emt 0:00:00]} c6 {[%emt 0:
00:00]} 3. Nf3 {[%emt 0:00:00]} Nf6 {[%emt 0:00:00]} 4. Nc3 {[%emt 0:00:00]}
dxc4 {[%emt 0:00:00]} 5. a4 {[%emt 0:00:00]} Bf5 {[%emt 0:00:00]} 6. Nh4 {
[%emt 0:00:00]} Bg4 {[%emt 0:00:00]} 7. h3 {[%emt 0:00:00]} Be6 {[%emt 0:00:00]
} 8. e4 {[%emt 0:00:00]} Na6 {[%emt 0:00:00]} 9. Nf3 {[%emt 0:00:00]} Nb4 {
[%emt 0:00:00]} 10. Be2 {[%emt 0:00:00]} g6 {[%emt 0:00:00]} 11. O-O {[%emt 0:
00:00]} Bg7 {[%emt 0:00:00]} 12. Ng5 {[%emt 0:00:00]} Qd7 {[%emt 0:00:00]} 13.
e5 {[%emt 0:00:00]} Nfd5 {[%emt 0:00:00]} 14. Nce4 {[%emt 0:00:00]} Bf5 {
[%emt 0:00:00]} 15. e6 {[%emt 0:00:00]} fxe6 {[%emt 0:00:00]} 16. Nc5 {[%emt 0:
00:00]} Qc8 {[%emt 0:00:00]} 17. Bxc4 {[%emt 0:00:00]} b6 {[%emt 0:00:00]} 18.
Nd3 {[%emt 0:00:00]} Nxd3 {[%emt 0:00:00]} 19. Bxd3 {[%emt 0:00:00]} O-O {
[%emt 0:00:00]} 20. Re1 {[%emt 0:00:00]} e5 {[%emt 0:00:00]} 21. dxe5 {[%emt 0:
00:00]} Bxd3 {[%emt 0:00:00]} 22. Qxd3 {[%emt 0:00:00]} Qf5 {[%emt 0:00:00]}
23. Qe2 {[%emt 0:00:00]} Nb4 {[%emt 0:00:00]} 24. Ra3 {[%emt 0:00:00]} Qc2 {
[%emt 0:00:00]} 25. Ne6 {[%emt 0:00:00]} Rf5 {[%emt 0:00:00]} 26. f4 {[%emt 0:
00:00]} c5 {[%emt 0:00:00]} 27. a5 {[%emt 0:00:00]} Rc8 {[%emt 0:00:00]} 28.
axb6 {[%emt 0:00:00]} axb6 {[%emt 0:00:00]} 29. Qd1 {[%emt 0:00:00]} Rb8 {
[%emt 0:00:00]} 30. Ra7 {[%emt 0:00:00]} Rf7 {[%emt 0:00:50]} 31. Ng5 {[%emt 0:
00:00]} Rff8 {[%emt 0:00:00]} 32. Rxe7 {[%emt 0:00:00]} Rfd8 {[%emt 0:00:04]}
33. Rxg7+ {[%emt 0:00:00]} 1-0

[Event "Gibraltar Masters 18th"]
[Site "Gibraltar"]
[Date "2020.01.26"]
[Round "6.44"]
[White "Henderson De La Fuente, Lance"]
[Black "Pourkashiyan, Atousa"]
[Result "1-0"]
[ECO "E18"]
[WhiteElo "2492"]
[BlackElo "2305"]
[PlyCount "83"]
[EventDate "2020.01.21"]
[EventType "swiss"]
[EventRounds "10"]
[EventCountry "GGB"]
[SourceTitle "BritBase"]
[Source "John Saunders"]
[SourceDate "2021.06.05"]
[SourceVersion "1"]
[SourceVersionDate "2021.06.05"]
[SourceQuality "1"]
[TimeControl "40/100:0"]
[WhiteClock "0:19:57"]
[BlackClock "0:00:41"]

1. d4 {[%emt 0:00:00]} Nf6 {[%emt 0:00:00]} 2. Nf3 {[%emt 0:00:00]} e6 {
[%emt 0:00:00]} 3. g3 {[%emt 0:00:00]} b6 {[%emt 0:00:00]} 4. Bg2 {[%emt 0:00:
00]} Bb7 {[%emt 0:00:00]} 5. c4 {[%emt 0:00:00]} Be7 {[%emt 0:00:00]} 6. O-O {
[%emt 0:00:00]} O-O {[%emt 0:00:00]} 7. Nc3 {[%emt 0:00:00]} Ne4 {[%emt 0:00:
00]} 8. Bd2 {[%emt 0:00:00]} d5 {[%emt 0:00:00]} 9. cxd5 {[%emt 0:00:00]} exd5
{[%emt 0:00:00]} 10. Rc1 {[%emt 0:00:00]} Nxc3 {[%emt 0:00:00]} 11. Rxc3 {
[%emt 0:00:00]} Bb4 {[%emt 0:00:00]} 12. Rc2 {[%emt 0:00:00]} Bxd2 {[%emt 0:00:
00]} 13. Qxd2 {[%emt 0:00:00]} Nd7 {[%emt 0:00:00]} 14. Rfc1 {[%emt 0:00:00]}
c6 {[%emt 0:00:00]} 15. Qf4 {[%emt 0:00:00]} Re8 {[%emt 0:00:00]} 16. Bh3 {
[%emt 0:00:00]} Qe7 {[%emt 0:00:00]} 17. b4 {[%emt 0:00:00]} Rad8 {[%emt 0:00:
00]} 18. b5 {[%emt 0:00:00]} c5 {[%emt 0:00:00]} 19. Bxd7 {[%emt 0:00:00]} Qxd7
{[%emt 0:00:00]} 20. dxc5 {[%emt 0:00:00]} bxc5 {[%emt 0:00:00]} 21. Rxc5 {
[%emt 0:00:00]} Re4 {[%emt 0:00:00]} 22. Qc7 {[%emt 0:00:00]} Kf8 {[%emt 0:00:
00]} 23. Qa5 {[%emt 0:00:00]} Rc4 {[%emt 0:00:00]} 24. Ne5 {[%emt 0:00:00]}
Rxc1+ {[%emt 0:00:00]} 25. Rxc1 {[%emt 0:00:00]} Qe7 {[%emt 0:00:00]} 26. Nc6 {
[%emt 0:00:00]} Bxc6 {[%emt 0:00:00]} 27. bxc6 {[%emt 0:00:00]} Rc8 {[%emt 0:
00:00]} 28. c7 {[%emt 0:00:00]} Qxe2 {[%emt 0:00:11]} 29. Qxd5 {[%emt 0:00:00]}
Qe7 {[%emt 0:00:54]} 30. Qb7 {[%emt 0:00:00]} Qd7 {[%emt 0:00:00]} 31. Qxa7 {
[%emt 0:00:00]} h5 {[%emt 0:00:00]} 32. h4 {[%emt 0:00:00]} Kg8 {[%emt 0:00:00]
} 33. Qc5 {[%emt 0:00:00]} g6 {[%emt 0:00:00]} 34. Qc4 {[%emt 0:00:00]} Kh7 {
[%emt 0:00:00]} 35. a4 {[%emt 0:00:00]} Qf5 {[%emt 0:00:03]} 36. Qc5 {[%emt 0:
00:00]} Qd3 {[%emt 0:00:00]} 37. a5 {[%emt 0:00:00]} Qa6 {[%emt 0:00:00]} 38.
Qb6 {[%emt 0:00:00]} Qe2 {[%emt 0:00:00]} 39. Qf6 {[%emt 0:00:00]} Qe8 {
[%emt 0:00:00]} 40. a6 {[%emt 0:00:00]} Qd7 {[%emt 0:00:00]} 41. Qc6 {[%emt 0:
00:00]} Qd4 {[%emt 0:01:31]} 42. Qc4 {[%emt 0:00:00]} 1-0

[Event "Gibraltar Masters 18th"]
[Site "Gibraltar"]
[Date "2020.01.26"]
[Round "6.45"]
[White "Pogonina, Natalija"]
[Black "Nandhidhaa, P V."]
[Result "1-0"]
[ECO "E08"]
[WhiteElo "2479"]
[BlackElo "2312"]
[PlyCount "107"]
[EventDate "2020.01.21"]
[EventType "swiss"]
[EventRounds "10"]
[EventCountry "GGB"]
[SourceTitle "BritBase"]
[Source "John Saunders"]
[SourceDate "2021.06.05"]
[SourceVersion "1"]
[SourceVersionDate "2021.06.05"]
[SourceQuality "1"]
[TimeControl "40/100:0"]
[WhiteClock "0:31:14"]
[BlackClock "0:40:53"]

1. d4 {[%emt 0:00:00]} Nf6 {[%emt 0:00:00]} 2. c4 {[%emt 0:00:00]} e6 {[%emt 0:
00:00]} 3. g3 {[%emt 0:00:00]} d5 {[%emt 0:00:00]} 4. Bg2 {[%emt 0:00:00]} Bb4+
{[%emt 0:00:00]} 5. Bd2 {[%emt 0:00:00]} Be7 {[%emt 0:00:00]} 6. Nf3 {[%emt 0:
00:00]} O-O {[%emt 0:00:00]} 7. O-O {[%emt 0:00:00]} c6 {[%emt 0:00:00]} 8. Qc2
{[%emt 0:00:00]} b6 {[%emt 0:00:00]} 9. Bf4 {[%emt 0:00:00]} Nh5 {[%emt 0:00:
00]} 10. Bc1 {[%emt 0:00:00]} Nf6 {[%emt 0:00:00]} 11. b3 {[%emt 0:00:00]} Nbd7
{[%emt 0:00:00]} 12. Bb2 {[%emt 0:00:00]} Bb7 {[%emt 0:00:00]} 13. Nc3 {
[%emt 0:00:00]} c5 {[%emt 0:00:00]} 14. cxd5 {[%emt 0:00:00]} exd5 {[%emt 0:00:
00]} 15. Rfd1 {[%emt 0:00:00]} Rc8 {[%emt 0:00:00]} 16. dxc5 {[%emt 0:00:00]}
Bxc5 {[%emt 0:00:00]} 17. e3 {[%emt 0:00:00]} Bb4 {[%emt 0:00:00]} 18. Qd3 {
[%emt 0:00:00]} Nc5 {[%emt 0:00:00]} 19. Qd4 {[%emt 0:00:00]} a5 {[%emt 0:00:
00]} 20. Rac1 {[%emt 0:00:00]} Ne6 {[%emt 0:00:00]} 21. Qe5 {[%emt 0:00:00]}
Re8 {[%emt 0:00:00]} 22. Qf5 {[%emt 0:00:00]} Qe7 {[%emt 0:00:00]} 23. Nb5 {
[%emt 0:00:00]} Ne4 {[%emt 0:00:00]} 24. Nfd4 {[%emt 0:00:00]} g6 {[%emt 0:00:
00]} 25. Qe5 {[%emt 0:00:00]} Rxc1 {[%emt 0:00:00]} 26. Rxc1 {[%emt 0:00:00]}
N6c5 {[%emt 0:00:00]} 27. Qxe7 {[%emt 0:00:00]} Rxe7 {[%emt 0:00:00]} 28. a3 {
[%emt 0:00:00]} Nd3 {[%emt 0:00:00]} 29. axb4 {[%emt 0:00:00]} Nxb2 {[%emt 0:
00:00]} 30. Bf1 {[%emt 0:00:00]} Nd2 {[%emt 0:00:00]} 31. Rc2 {[%emt 0:00:00]}
Nxf1 {[%emt 0:00:00]} 32. Rxb2 {[%emt 0:00:00]} Nxe3 {[%emt 0:00:00]} 33. fxe3
{[%emt 0:00:00]} Rxe3 {[%emt 0:00:00]} 34. bxa5 {[%emt 0:00:00]} bxa5 {[%emt 0:
00:00]} 35. Ra2 {[%emt 0:00:00]} Bc8 {[%emt 0:00:00]} 36. Kf2 {[%emt 0:00:00]}
Re4 {[%emt 0:00:00]} 37. Re2 {[%emt 0:00:19]} Bd7 {[%emt 0:00:00]} 38. Rxe4 {
[%emt 0:00:00]} dxe4 {[%emt 0:00:00]} 39. Ke3 {[%emt 0:00:05]} f5 {[%emt 0:00:
00]} 40. Kf4 {[%emt 0:00:00]} Kg7 {[%emt 0:00:00]} 41. Nc3 {[%emt 0:00:00]} Kf7
{[%emt 0:00:00]} 42. Ke5 {[%emt 0:00:00]} Be8 {[%emt 0:00:00]} 43. Ne6 {
[%emt 0:00:00]} h6 {[%emt 0:00:00]} 44. Nd8+ {[%emt 0:00:00]} Kg7 {[%emt 0:00:
00]} 45. Nb7 {[%emt 0:00:00]} Bd7 {[%emt 0:00:00]} 46. Nxa5 {[%emt 0:00:00]} g5
{[%emt 0:00:00]} 47. Nc4 {[%emt 0:00:00]} Kg6 {[%emt 0:00:00]} 48. Ne3 {
[%emt 0:00:00]} h5 {[%emt 0:00:00]} 49. Ncd5 {[%emt 0:00:00]} h4 {[%emt 0:00:
00]} 50. Ne7+ {[%emt 0:00:00]} Kh5 {[%emt 0:00:00]} 51. N7xf5 {[%emt 0:00:00]}
hxg3 {[%emt 0:00:00]} 52. hxg3 {[%emt 0:00:00]} Bc6 {[%emt 0:00:00]} 53. Kf6 {
[%emt 0:00:00]} g4 {[%emt 0:00:00]} 54. Ng2 {[%emt 0:00:00]} 1-0